bitfinex-derivatives/quotes_BTCF0:USTF0_20210708
["timestamp","ask_amount","ask_price","bid_price","bid_amount"]
[1625762172876,6.25638,32820.0,32818.0,0.61404782]
[1625762173191,0.26881534,32819.0,32818.0,0.52632028]
[1625762173327,0.33024021,32819.0,32818.0,0.52632028]
[1625762174082,0.24057544,32819.0,32818.0,0.52579644]
[1625762175284,0.24057544,32819.0,32818.0,1.57692443]
[1625762176334,0.24057544,32819.0,32818.0,0.52579644]
[1625762178584,0.24057544,32819.0,32818.0,0.52567692]
[1625762179488,0.24057544,32819.0,32818.0,0.87617829]
[1625762180016,0.24057544,32819.0,32818.0,1.05140301]
[1625762180314,0.24057544,32819.0,32818.0,0.87617829]
[1625762181514,0.24057544,32819.0,32818.0,0.52572283]
[1625762182651,0.33022645,32819.0,32818.0,0.61337815]
[1625762182941,0.50934926,32819.0,32818.0,0.61337815]
[1625762183093,0.86741661,32819.0,32818.0,0.26292687]
[1625762183393,0.7777656,32819.0,32818.0,0.58812197]
[1625762183849,0.7777656,32819.0,32818.0,0.23732687]
[1625762183993,1.31495568,32819.0,32818.0,0.23732687]
[1625762184294,1.13583287,32819.0,32818.0,0.23732687]
[1625762184743,0.59864279,32819.0,32818.0,0.58808175]
[1625762185046,1.13583304,32819.0,32818.0,0.23732687]
[1625762185204,0.77776569,32819.0,32818.0,0.58831357]
[1625762187194,1.85239385,32819.0,32817.0,0.08779669]
[1625762187450,1.85333671,32818.0,32817.0,0.08779669]
[1625762187921,1.85333671,32818.0,32816.0,0.43904837]
[1625762188067,2.35333671,32818.0,32816.0,0.43904837]
[1625762188202,1.61280689,32817.0,32816.0,0.08786163]
[1625762188372,2.11280689,32817.0,32816.0,0.08786163]
[1625762188515,2.11280689,32817.0,32813.0,0.43962621]
[1625762188516,3.36685312,32817.0,32813.0,0.43962621]
[1625762188648,4.80007223,32817.0,32812.0,0.35184951]
[1625762188949,1.61256864,32813.0,32811.0,0.35190565]
[1625762189097,1.88423864,32813.0,32811.0,0.35190565]
[1625762189248,1.61300619,32812.0,32811.0,5.65e-06]
[1625762189397,2.09415707,32812.0,32811.0,5.65e-06]
[1625762189548,2.09415707,32812.0,32809.0,0.52821549]
[1625762189698,0.53773217,32810.0,32809.0,0.45551549]
[1625762190526,1.55598819,32812.0,32809.0,0.45551549]
[1625762190825,1.55598819,32812.0,32807.0,1.05651186]
[1625762191426,4.49175088,32808.0,32806.0,1.23185421]
[1625762191726,4.49175088,32808.0,32807.0,1.05584987]
[1625762193378,4.49175088,32808.0,32807.0,2.28791697]
[1625762199159,4.49175088,32808.0,32807.0,1.05584987]
[1625762200738,4.49175088,32808.0,32807.0,1.76088766]
[1625762206449,4.49175088,32808.0,32807.0,0.70503779]
[1625762206600,4.49175088,32808.0,32807.0,1.76248531]
[1625762208404,4.49175088,32808.0,32807.0,2.99555858]
[1625762208703,4.49175088,32808.0,32807.0,1.76248531]
[1625762208854,4.49175088,32808.0,32807.0,2.99553488]
[1625762209158,4.49175088,32808.0,32807.0,1.76248531]
[1625762209381,4.49175088,32808.0,32807.0,2.99561475]
[1625762210957,4.49175088,32808.0,32807.0,1.76248531]
[1625762213061,4.77947088,32808.0,32807.0,1.76248531]
[1625762217041,4.77947088,32808.0,32807.0,0.70503779]
[1625762217340,4.77947088,32808.0,32807.0,1.76322383]
[1625762219144,4.49175088,32808.0,32807.0,1.76322383]
[1625762219291,0.48115088,32808.0,32807.0,1.76322383]
[1625762219592,0.48115088,32808.0,32807.0,2.99733077]
[1625762219892,5.75615088,32808.0,32807.0,2.99733077]
[1625762221393,0.48115088,32808.0,32807.0,2.99733077]
[1625762221544,0.48115088,32808.0,32807.0,4.40739856]
[1625762223195,0.48115088,32808.0,32807.0,5.99206077]
[1625762229908,0.24057544,32812.0,32807.0,5.99206077]
[1625762230043,0.24057544,32812.0,32807.0,7.75197398]
[1625762230330,0.24057544,32812.0,32811.0,5.9821091]
[1625762231606,0.24057544,32812.0,32811.0,6.22268454]
[1625762236560,0.24057544,32818.0,32811.0,6.22268454]
[1625762236861,0.24057544,32818.0,32817.0,4.40988734]
[1625762237012,0.24057544,32818.0,32817.0,4.74291734]
[1625762237611,0.24057544,32818.0,32817.0,4.98349278]
[1625762245115,0.24057544,32818.0,32817.0,10.40109278]
[1625762253534,0.24057544,32818.0,32817.0,10.30109278]
[1625762259620,0.24057544,32821.0,32817.0,10.30109278]
[1625762259761,0.24057544,32821.0,32820.0,0.24057544]
[1625762259911,0.24057544,32821.0,32820.0,3.41411943]
[1625762261713,0.24057544,32824.0,32820.0,3.41411943]
[1625762262012,0.24057544,32824.0,32823.0,1.76312389]
[1625762263738,0.24057544,32824.0,32823.0,2.00369933]
[1625762264266,0.24057544,32824.0,32823.0,0.945825]
[1625762266387,0.24057544,32824.0,32823.0,2.00456219]
[1625762267344,0.24057544,32824.0,32823.0,0.945825]
[1625762267948,0.24057544,32824.0,32823.0,2.00481226]
[1625762271869,0.9577075,32824.0,32823.0,0.945825]
[1625762272313,2.03361315,32824.0,32823.0,0.945825]
[1625762273658,2.03361315,32824.0,32823.0,2.00590674]
[1625762273803,2.03361315,32824.0,32823.0,0.945825]
[1625762274105,2.03361315,32824.0,32823.0,2.0063505]
[1625762275232,2.03361315,32824.0,32823.0,2.2223405]
[1625762277610,2.24669315,32824.0,32823.0,2.0063505]
[1625762277742,2.24669315,32824.0,32823.0,0.945825]
[1625762277743,3.50306356,32824.0,32823.0,0.945825]
[1625762278163,4.93996169,32824.0,32823.0,0.945825]
[1625762278917,4.93996169,32824.0,32823.0,0.24057544]
[1625762279237,5.03216169,32824.0,32823.0,0.24057544]
[1625762279438,6.64879754,32824.0,32823.0,0.24057544]
[1625762279892,6.88937298,32824.0,32823.0,0.24057544]
[1625762280939,7.42875164,32824.0,32823.0,0.24057544]
[1625762283115,2.40306673,32824.0,32823.0,0.24057544]
[1625762283416,7.43584409,32824.0,32823.0,0.24057544]
[1625762285591,11.26614409,32824.0,32823.0,0.24057544]
[1625762286056,11.17394409,32824.0,32823.0,0.24057544]
[1625762286520,9.55730824,32824.0,32823.0,0.77228729]
[1625762286715,9.55730824,32824.0,32823.0,1.48110989]
[1625762288967,9.55730824,32824.0,32823.0,2.54321163]
[1625762289116,5.72700824,32824.0,32823.0,2.54321163]
[1625762289272,5.51392824,32824.0,32823.0,2.54321163]
[1625762289568,4.07606887,32824.0,32823.0,3.781471]
[1625762289867,4.07606887,32824.0,32823.0,8.245071]
[1625762291145,2.81791946,32824.0,32823.0,9.66018949]
[1625762291295,2.81791946,32824.0,32823.0,5.19658949]
[1625762291445,3.11786946,32824.0,32823.0,4.95601405]
[1625762291669,6.17444663,32824.0,32823.0,4.94101405]
[1625762291757,7.43306895,32824.0,32823.0,0.51671185]
[1625762291895,7.43306895,32824.0,32821.0,0.70936852]
[1625762292045,7.43306895,32824.0,32821.0,0.64936852]
[1625762292195,3.77614986,32822.0,32821.0,0.64936852]
[1625762292426,3.77614986,32822.0,32819.0,1.24139491]
[1625762292427,5.39443669,32822.0,32819.0,1.0645453]
[1625762292571,5.1266,32820.0,32819.0,1.0645453]
[1625762292721,8.9028057,32820.0,32819.0,1.0645453]
[1625762293248,10.52122832,32820.0,32817.0,1.06512709]
[1625762293334,0.0921,32819.0,32817.0,1.06512709]
[1625762293487,0.0921,32819.0,32814.0,1.24290495]
[1625762293488,2.6974909,32818.0,32814.0,1.24290495]
[1625762293697,2.6975285,32815.0,32813.0,1.4836687]
[1625762293846,2.9427385,32815.0,32813.0,1.4836687]
[1625762293996,1.87244378,32814.0,32813.0,1.4836687]
[1625762297975,1.87244378,32814.0,32813.0,0.24057544]
[1625762298126,0.61358373,32814.0,32813.0,0.24057544]
[1625762298277,0.61358373,32814.0,32813.0,1.48241583]
[1625762298427,1.8712097,32814.0,32813.0,1.48241583]
[1625762298877,1.8712097,32814.0,32813.0,0.24057544]
[1625762299480,0.61358373,32814.0,32813.0,0.24057544]
[1625762299630,3.30849106,32814.0,32813.0,0.24057544]
[1625762304288,3.30849106,32814.0,32810.0,0.24057544]
[1625762304660,2.69178744,32811.0,32805.0,1.24302617]
[1625762304778,3.19178744,32811.0,32805.0,1.04402617]
[1625762304929,3.19178744,32811.0,32804.0,0.24057544]
[1625762304930,5.52120946,32806.0,32804.0,0.24057544]
[1625762305072,4.5407,32806.0,32804.0,0.24057544]
[1625762305340,1.43587275,32805.0,32804.0,0.24057544]
[1625762305641,1.43587275,32805.0,32800.0,0.24057544]
[1625762305940,0.72172632,32801.0,32796.0,0.24057544]
[1625762306392,4.9207,32797.0,32796.0,0.24057544]
[1625762306541,5.17831,32797.0,32793.0,1.66387788]
[1625762306709,5.17831,32797.0,32791.0,1.42436264]
[1625762306842,5.17831,32797.0,32790.0,1.66517835]
[1625762307294,5.17831,32797.0,32790.0,0.24057544]
[1625762308046,0.48115088,32791.0,32790.0,0.24057544]
[1625762308496,0.48115088,32791.0,32786.0,0.24057544]
[1625762308647,4.5235,32787.0,32786.0,0.24057544]
[1625762308796,4.85093,32787.0,32786.0,0.24057544]
[1625762310001,5.09150544,32787.0,32786.0,0.24057544]
[1625762312403,5.09150544,32787.0,32786.0,0.59618821]
[1625762312928,5.09150544,32787.0,32786.0,0.24057544]
[1625762314880,5.09150544,32787.0,32783.0,0.35554224]
[1625762315330,5.09150544,32787.0,32782.0,0.59617132]
[1625762316008,0.24057544,32783.0,32782.0,0.59617132]
[1625762316308,0.24057544,32783.0,32782.0,0.24057544]
[1625762316775,0.24057544,32783.0,32778.0,0.24057544]
[1625762317059,0.24057544,32783.0,32775.0,0.5965375]
[1625762317208,0.24057544,32783.0,32775.0,0.35596206]
[1625762317361,0.74057544,32783.0,32774.0,0.35611493]
[1625762317661,0.74057544,32783.0,32773.0,0.35622407]
[1625762317812,0.74057544,32783.0,32769.0,0.9361]
[1625762317813,4.1357,32774.0,32772.0,0.3563428]
[1625762317962,0.24057544,32773.0,32772.0,0.3563428]
[1625762318113,0.72172632,32773.0,32771.0,0.35635763]
[1625762318414,0.72172632,32773.0,32769.0,0.35588585]
[1625762318566,0.72172632,32773.0,32768.0,0.35606366]
[1625762318790,0.72172632,32773.0,32766.0,0.24057544]
[1625762318791,0.72172632,32773.0,32767.0,0.35615425]
[1625762319090,0.72172632,32773.0,32768.0,0.35612884]
[1625762319556,0.72172632,32773.0,32765.0,0.35621493]
[1625762319842,0.72172632,32773.0,32763.0,0.24057544]
[1625762319843,0.72172632,32773.0,32764.0,0.35622026]
[1625762319993,0.48115088,32765.0,32764.0,0.35622026]
[1625762320148,0.70673088,32765.0,32764.0,0.35622026]
[1625762320294,0.70673088,32765.0,32763.0,0.24057544]
[1625762322098,0.94730632,32765.0,32763.0,0.24057544]
[1625762322774,0.94730632,32765.0,32760.0,0.35527084]
[1625762323074,0.94730632,32765.0,32759.0,0.59584762]
[1625762323224,5.4086,32760.0,32759.0,0.59584762]
[1625762323376,5.4086,32760.0,32759.0,0.24057544]
[1625762323675,5.4086,32760.0,32759.0,0.59586503]
[1625762324124,5.64917544,32760.0,32759.0,0.59586503]
[1625762324428,5.64917544,32760.0,32759.0,0.24057544]
[1625762329561,0.24057544,32760.0,32759.0,0.24057544]
[1625762331835,0.24057544,32760.0,32759.0,0.59479172]
[1625762332169,0.24057544,32760.0,32759.0,0.24057544]
[1625762332565,0.45412544,32760.0,32759.0,0.24057544]
[1625762338093,0.45412544,32760.0,32753.0,0.9299]
[1625762338244,0.48115088,32754.0,32753.0,0.9299]
[1625762338400,0.48115088,32754.0,32752.0,0.1770595]
[1625762338554,0.48115088,32754.0,32751.0,0.24057544]
[1625762342610,0.48115088,32754.0,32747.0,0.17704505]
[1625762342766,0.48115088,32754.0,32746.0,0.35409085]
[1625762342767,0.48115088,32754.0,32746.0,0.53116075]
[1625762343574,0.48115088,32754.0,32746.0,0.1770699]
[1625762343725,3.9751,32749.0,32746.0,0.1770699]
[1625762343880,4.22536,32749.0,32746.0,0.1770699]
[1625762344175,0.48115088,32747.0,32746.0,0.1770699]
[1625762344626,0.48115088,32747.0,32746.0,0.5311685]
[1625762345076,0.48115088,32747.0,32746.0,0.1770699]
[1625762345376,0.48115088,32747.0,32745.0,0.77173009]
[1625762345624,0.48115088,32747.0,32745.0,0.24057544]
[1625762346356,0.48115088,32747.0,32745.0,0.77177252]
[1625762346653,0.48115088,32747.0,32746.0,0.17706364]
[1625762347263,0.48115088,32747.0,32745.0,0.77177076]
[1625762348010,0.48115088,32747.0,32745.0,0.41763937]
[1625762348229,0.48115088,32747.0,32745.0,0.77191289]
[1625762348905,0.48115088,32747.0,32746.0,0.17713684]
[1625762349205,0.48115088,32747.0,32745.0,0.77198449]
[1625762350332,0.48115088,32747.0,32746.0,0.5318396]
[1625762352209,0.48115088,32747.0,32746.0,0.70961391]
[1625762352809,0.48115088,32747.0,32746.0,1.77403128]
[1625762354463,0.48115088,32747.0,32746.0,3.01664741]
[1625762355137,0.48115088,32747.0,32746.0,1.77403128]
[1625762356189,0.48115088,32747.0,32746.0,3.01775816]
[1625762356488,0.48115088,32747.0,32746.0,1.77403128]
[1625762356939,0.48115088,32747.0,32746.0,3.01774888]
[1625762357239,0.48115088,32747.0,32746.0,1.77403128]
[1625762358289,0.72172632,32747.0,32746.0,1.77403128]
[1625762358739,0.72172632,32747.0,32746.0,1.86533128]
[1625762358892,0.72172632,32747.0,32746.0,1.77403128]
[1625762359041,0.72172632,32747.0,32746.0,3.01913541]
[1625762359651,0.72172632,32747.0,32746.0,3.35781541]
[1625762360094,0.72172632,32747.0,32746.0,4.78068079]
[1625762360244,0.72172632,32747.0,32746.0,5.02125623]
[1625762362201,0.72172632,32747.0,32746.0,6.62596852]
[1625762363404,0.72172632,32747.0,32746.0,5.02125623]
[1625762364309,0.72172632,32747.0,32746.0,6.6287775]
[1625762364906,0.72172632,32747.0,32746.0,4.78068079]
[1625762365505,0.72172632,32747.0,32746.0,4.44200079]
[1625762368436,0.72172632,32747.0,32746.0,6.05222089]
[1625762374747,0.72172632,32747.0,32746.0,4.44200079]
[1625762375193,0.72172632,32747.0,32746.0,3.01913541]
[1625762375495,0.72172632,32747.0,32746.0,1.77403128]
[1625762376246,0.72172632,32747.0,32746.0,1.63633128]
[1625762376546,1.07695214,32747.0,32746.0,0.57191391]
[1625762376848,0.72172632,32747.0,32746.0,0.57191391]
[1625762377149,0.72172632,32747.0,32744.0,1.07733959]
[1625762377297,0.72172632,32747.0,32746.0,0.6284536]
[1625762377298,1.78642798,32747.0,32746.0,0.6284536]
[1625762377598,1.78642798,32747.0,32745.0,0.26915419]
[1625762377751,1.87862798,32747.0,32745.0,0.26915419]
[1625762377897,1.87862798,32747.0,32744.0,0.62803065]
[1625762378347,1.06390464,32746.0,32745.0,0.08975047]
[1625762378949,1.06390464,32746.0,32744.0,0.26918951]
[1625762379399,1.06390464,32746.0,32744.0,0.24718951]
[1625762379699,1.06258998,32745.0,32742.0,0.44843966]
[1625762379849,1.33840998,32745.0,32742.0,0.44843966]
[1625762380000,0.35427277,32743.0,32742.0,0.08968793]
[1625762380153,1.0622758,32744.0,32741.0,0.44844252]
[1625762380301,1.0622758,32744.0,32741.0,0.08969538]
[1625762380452,0.83536618,32742.0,32741.0,0.08969538]
[1625762380904,0.92406985,32742.0,32741.0,0.44848024]
[1625762381205,0.83536618,32742.0,32741.0,0.44848024]
[1625762381353,0.92406976,32742.0,32741.0,0.35878486]
[1625762381655,0.48115088,32742.0,32741.0,0.0896317]
[1625762382105,0.56977714,32742.0,32741.0,0.0896317]
[1625762382332,0.56977714,32742.0,32740.0,0.31995851]
[1625762382481,0.24057544,32741.0,32740.0,0.16815851]
[1625762382780,0.24057544,32741.0,32740.0,0.06115851]
[1625762382931,0.24057544,32741.0,32738.0,0.53785609]
[1625762383232,0.24057544,32741.0,32736.0,1.07571217]
[1625762383382,0.5,32740.0,32735.0,0.95301544]
[1625762383574,0.5,32740.0,32730.0,1.25400332]
[1625762383833,0.5,32740.0,32728.0,1.25403009]
[1625762384131,1.82528822,32740.0,32727.0,1.25408472]
[1625762384281,1.23458248,32739.0,32727.0,1.25408472]
[1625762384443,0.72172632,32728.0,32727.0,0.99698472]
[1625762384581,1.06807632,32728.0,32727.0,0.85888472]
[1625762384731,1.06807632,32728.0,32718.0,0.9909]
[1625762384732,1.06807632,32728.0,32723.0,1.43352218]
[1625762385032,1.06807632,32728.0,32721.0,1.45861734]
[1625762385331,1.06807632,32728.0,32721.0,0.025]
[1625762385480,1.56807632,32728.0,32721.0,0.025]
[1625762385631,1.65887632,32728.0,32721.0,0.025]
[1625762385783,1.15887632,32728.0,32721.0,0.025]
[1625762386459,0.48115088,32722.0,32721.0,0.025]
[1625762387657,0.57285088,32722.0,32721.0,0.025]
[1625762387809,0.57285088,32722.0,32711.0,0.24057544]
[1625762388258,1.07285088,32722.0,32707.0,1.42941517]
[1625762388558,0.72172632,32708.0,32705.0,1.67007825]
[1625762388710,1.05132632,32708.0,32705.0,0.24057544]
[1625762389012,1.05132632,32708.0,32705.0,1.67013134]
[1625762389162,1.05132632,32708.0,32705.0,0.24057544]
[1625762392009,5.2409,32706.0,32705.0,0.24057544]
[1625762393362,5.52775,32706.0,32705.0,0.24057544]
[1625762394118,0.28685,32706.0,32705.0,0.24057544]
[1625762394262,0.72172632,32708.0,32705.0,0.24057544]
[1625762394412,0.72172632,32708.0,32705.0,0.52621544]
[1625762395162,0.48115088,32708.0,32705.0,0.52621544]
[1625762396513,0.48115088,32708.0,32707.0,0.24057544]
[1625762397115,0.24057544,32716.0,32707.0,0.24057544]
[1625762398628,0.24057544,32716.0,32715.0,0.48115088]
[1625762398789,0.24057544,32716.0,32715.0,0.75875088]
[1625762399414,0.24057544,32726.0,32715.0,0.75875088]
[1625762399573,0.9479,32730.0,32715.0,0.75875088]
[1625762400580,0.9479,32730.0,32729.0,0.48115088]
[1625762400745,3.92867544,32731.0,32729.0,0.48115088]
[1625762403197,0.24057544,32731.0,32729.0,0.48115088]
[1625762403347,0.24057544,32734.0,32729.0,0.48115088]
[1625762403647,0.057,32747.0,32729.0,0.48115088]
[1625762404010,0.9372,32748.0,32729.0,0.48115088]
[1625762404550,0.9372,32748.0,32747.0,0.24057544]
[1625762404708,0.9372,32748.0,32747.0,0.59138544]
[1625762404902,3.9751,32749.0,32747.0,0.59138544]
[1625762405097,1.46737593,32752.0,32747.0,0.59138544]
[1625762405345,0.24057544,32752.0,32747.0,0.59138544]
[1625762406651,0.24057544,32748.0,32747.0,0.59138544]
[1625762410181,0.24057544,32748.0,32741.0,0.24057544]
[1625762410327,0.50245544,32748.0,32741.0,0.24057544]
[1625762410630,0.24057544,32742.0,32741.0,0.24057544]
[1625762412054,0.24057544,32745.0,32741.0,0.24057544]
[1625762412653,0.24057544,32745.0,32744.0,0.24057544]
[1625762413786,0.24057544,32748.0,32744.0,0.24057544]
[1625762414607,0.24057544,32748.0,32747.0,0.24057544]
[1625762416560,0.24057544,32752.0,32747.0,0.24057544]
[1625762416710,0.24057544,32752.0,32751.0,0.24057544]
[1625762416859,0.24057544,32752.0,32751.0,0.58522544]
[1625762424217,1.29604656,32752.0,32751.0,0.58522544]
[1625762427670,0.24057544,32752.0,32751.0,0.58522544]
[1625762428796,1.05701388,32754.0,32751.0,0.58522544]
[1625762429021,1.05718892,32755.0,32751.0,0.58522544]
[1625762429106,0.9952,32760.0,32751.0,0.58522544]
[1625762429107,1.05801989,32757.0,32751.0,0.58522544]
[1625762429444,1.05836555,32758.0,32751.0,0.58522544]
[1625762429753,1.05900531,32759.0,32751.0,0.58522544]
[1625762430460,0.24057544,32762.0,32751.0,0.58522544]
[1625762430461,1.05923729,32760.0,32751.0,0.58522544]
[1625762430746,1.05923729,32760.0,32759.0,0.48115088]
[1625762430899,1.05941654,32761.0,32759.0,0.72014088]
[1625762431203,0.24057544,32762.0,32759.0,0.72014088]
[1625762431204,1.29985321,32762.0,32759.0,0.72014088]
[1625762432549,1.29985321,32762.0,32759.0,0.48115088]
[1625762433002,1.05886191,32761.0,32759.0,0.48115088]
[1625762433152,1.2996343,32762.0,32759.0,0.48115088]
[1625762433387,1.05936858,32761.0,32759.0,0.48115088]
[1625762433700,1.05900933,32760.0,32759.0,0.48115088]
[1625762436459,2.9993738,32760.0,32759.0,0.48115088]
[1625762440658,3.2435638,32760.0,32759.0,0.48115088]
[1625762440814,4.89558155,32760.0,32759.0,0.48115088]
[1625762441256,4.89558155,32760.0,32751.0,0.24057544]
[1625762441558,0.70550683,32754.0,32751.0,0.24057544]
[1625762441854,0.70541481,32753.0,32751.0,0.24057544]
[1625762442006,0.96700481,32753.0,32751.0,0.24057544]
[1625762442756,1.18669014,32752.0,32751.0,0.24057544]
[1625762443507,0.48115088,32752.0,32751.0,0.24057544]
[1625762457482,0.71053736,32754.0,32751.0,2.03543467]
[1625762457768,0.71108661,32757.0,32753.0,1.79467485]
[1625762457924,0.71108661,32757.0,32753.0,2.06458485]
[1625762458069,0.711131,32758.0,32756.0,0.71763938]
[1625762458219,0.71120069,32759.0,32756.0,0.71763938]
[1625762458520,0.7111786,32758.0,32756.0,0.71763938]
[1625762458668,0.7111786,32758.0,32755.0,0.71766766]
[1625762458970,1.06639636,32758.0,32757.0,0.24057544]
[1625762459119,1.77735666,32758.0,32757.0,0.24057544]
[1625762459431,1.77735666,32758.0,32755.0,0.71766766]
[1625762459582,1.99481666,32758.0,32754.0,0.71770237]
[1625762459795,1.99481666,32758.0,32753.0,0.24057544]
[1625762459796,4.4408384,32755.0,32753.0,0.24057544]
[1625762459926,4.5318384,32755.0,32753.0,0.24057544]
[1625762460084,4.43865577,32754.0,32753.0,0.24057544]
[1625762460358,6.03566976,32754.0,32753.0,0.24057544]
[1625762460695,4.43865577,32754.0,32753.0,0.24057544]
[1625762460844,4.91980665,32754.0,32748.0,0.24057544]
[1625762460995,6.51673233,32754.0,32748.0,0.24057544]
[1625762461295,3.01611754,32749.0,32748.0,0.24057544]
[1625762461447,3.26521754,32749.0,32746.0,0.95928899]
[1625762461746,3.01349422,32747.0,32743.0,1.71236191]
[1625762461898,3.10599422,32747.0,32743.0,1.71236191]
[1625762462045,5.58450446,32744.0,32742.0,0.71878546]
[1625762462198,1.77154694,32743.0,32741.0,0.71883234]
[1625762462512,3.00970677,32742.0,32738.0,0.71885227]
[1625762462653,1.77021578,32739.0,32738.0,0.71885227]
[1625762462946,2.4919421,32739.0,32738.0,0.71885227]
[1625762463696,2.4919421,32739.0,32737.0,0.71914005]
[1625762464156,1.77034213,32738.0,32737.0,0.71914005]
[1625762464298,1.86144213,32738.0,32737.0,0.71914005]
[1625762465122,4.5146516,32738.0,32735.0,0.24057544]
[1625762465421,1.76869741,32736.0,32735.0,0.24057544]
[1625762465573,1.86049741,32736.0,32735.0,0.24057544]
[1625762465871,1.86049741,32736.0,32735.0,0.95957421]
[1625762466022,1.86049741,32736.0,32735.0,0.24057544]
[1625762468358,1.76869741,32736.0,32734.0,0.7190058]
[1625762468515,1.76869741,32736.0,32733.0,0.71875054]
[1625762468670,1.76680845,32734.0,32732.0,0.71249169]
[1625762468802,1.99920845,32734.0,32732.0,0.71249169]
[1625762468950,1.99920845,32734.0,32730.0,1.07821736]
[1625762468951,1.54100039,32733.0,32730.0,1.07821736]
[1625762469566,1.05856362,32732.0,32727.0,1.07756941]
[1625762470012,1.05856362,32732.0,32727.0,0.98016941]
[1625762470150,5.3442,32728.0,32727.0,0.98016941]
[1625762471054,5.3442,32728.0,32725.0,2.46065677]
[1625762471055,5.82535088,32728.0,32725.0,2.46065677]
[1625762471502,5.82535088,32728.0,32725.0,1.20347544]
[1625762471953,0.0906,32727.0,32725.0,1.20347544]
[1625762472103,0.39051,32727.0,32725.0,1.20347544]
[1625762472553,0.29991,32727.0,32725.0,1.20347544]
[1625762473003,0.24057544,32726.0,32725.0,1.20347544]
[1625762473303,0.24057544,32726.0,32725.0,0.24057544]
[1625762473453,0.24057544,32726.0,32725.0,0.7787323]
[1625762473753,0.24057544,32726.0,32725.0,0.53815686]
[1625762475040,0.24057544,32726.0,32725.0,0.7787323]
[1625762475706,0.24057544,32726.0,32725.0,2.03376857]
[1625762477512,0.24057544,32726.0,32725.0,0.7787323]
[1625762481563,0.24057544,32726.0,32725.0,2.03236879]
[1625762481715,0.24057544,32726.0,32725.0,1.79179335]
[1625762481865,0.24057544,32726.0,32725.0,0.53815686]
[1625762483065,0.24057544,32726.0,32725.0,0.7787323]
[1625762483514,0.57303544,32726.0,32725.0,0.7787323]
[1625762485541,0.24057544,32726.0,32725.0,0.7787323]
[1625762485843,0.24057544,32726.0,32725.0,1.1258523]
[1625762486144,0.24057544,32726.0,32725.0,2.37874942]
[1625762487945,0.24057544,32726.0,32725.0,3.81040676]
[1625762488247,5.58477544,32728.0,32725.0,3.81040676]
[1625762488397,0.24057544,32728.0,32725.0,3.81040676]
[1625762488556,0.24057544,32733.0,32725.0,3.81040676]
[1625762488697,0.24057544,32733.0,32727.0,1.78953999]
[1625762488848,0.24057544,32733.0,32731.0,0.53686032]
[1625762488996,0.24057544,32733.0,32732.0,0.24057544]
[1625762490199,0.24057544,32733.0,32726.0,1.49324117]
[1625762490200,0.24057544,32733.0,32728.0,0.53686077]
[1625762490347,0.24057544,32733.0,32726.0,0.24057544]
[1625762490348,0.50365544,32733.0,32727.0,0.53687718]
[1625762490648,0.50365544,32733.0,32726.0,0.24057544]
[1625762490951,0.52668266,32732.0,32726.0,0.24057544]
[1625762491098,0.24057544,32727.0,32726.0,0.24057544]
[1625762495376,4.2748,32729.0,32726.0,0.24057544]
[1625762495377,4.2748,32729.0,32726.0,0.77754296]
[1625762495527,4.2748,32729.0,32727.0,0.53693882]
[1625762496276,4.2748,32729.0,32726.0,0.24057544]
[1625762496277,4.2748,32729.0,32726.0,0.77756819]
[1625762496576,4.2748,32729.0,32726.0,0.24057544]
[1625762496726,4.2748,32729.0,32726.0,0.7775705]
[1625762497900,4.2748,32729.0,32728.0,0.53704633]
[1625762498034,4.2748,32729.0,32728.0,0.88572633]
[1625762499130,4.2748,32729.0,32728.0,1.12630177]
[1625762500104,4.2748,32729.0,32728.0,2.2004729]
[1625762501387,4.2748,32729.0,32728.0,3.45388231]
[1625762501688,0.48115088,32733.0,32728.0,3.45388231]
[1625762501838,0.48115088,32733.0,32732.0,0.53723094]
[1625762503040,0.48115088,32733.0,32732.0,0.77780638]
[1625762507095,0.48115088,32733.0,32732.0,1.85273852]
[1625762508447,0.48115088,32733.0,32732.0,3.10720709]
[1625762511450,0.48115088,32733.0,32732.0,4.54157825]
[1625762512278,1.25945898,32740.0,32732.0,4.54157825]
[1625762512429,0.35215898,32740.0,32732.0,4.54157825]
[1625762512578,0.35215898,32740.0,32738.0,0.35870732]
[1625762512728,0.35215898,32740.0,32738.0,0.24066]
[1625762512878,0.35279653,32742.0,32739.0,0.53803199]
[1625762513029,0.35286338,32743.0,32741.0,4.7217698]
[1625762513178,0.35286338,32743.0,32742.0,0.72172632]
[1625762513330,0.88212599,32744.0,32742.0,0.72172632]
[1625762513627,0.3529191,32744.0,32742.0,1.08038265]
[1625762513786,0.35304494,32745.0,32743.0,0.35864219]
[1625762514078,0.88273361,32746.0,32744.0,0.8969209]
[1625762514302,0.35325442,32746.0,32745.0,0.35876936]
[1625762514469,0.35325442,32746.0,32745.0,0.68138936]
[1625762514606,0.35343741,32747.0,32745.0,0.86075154]
[1625762515054,0.35348031,32748.0,32746.0,0.53810963]
[1625762515203,0.88363085,32749.0,32747.0,1.37798705]
[1625762515503,1.06008764,32751.0,32748.0,0.53810002]
[1625762515504,0.3536413,32750.0,32748.0,0.53810002]
[1625762515804,0.3536413,32750.0,32748.0,0.89672061]
[1625762515971,0.3536413,32750.0,32749.0,0.53813448]
[1625762516103,0.8845678,32752.0,32749.0,0.53813448]
[1625762516255,0.35385252,32751.0,32749.0,0.53813448]
[1625762516404,0.35385252,32751.0,32750.0,0.89688475]
[1625762516853,0.88457871,32752.0,32750.0,0.53813085]
[1625762517154,0.53070531,32752.0,32751.0,0.24057544]
[1625762517453,0.8844065,32752.0,32751.0,0.24057544]
[1625762517754,0.53070531,32752.0,32751.0,0.24057544]
[1625762517980,1.59221064,32752.0,32751.0,0.24057544]
[1625762518594,2.82992344,32752.0,32751.0,0.24057544]
[1625762519331,4.24408166,32752.0,32751.0,0.24057544]
[1625762519481,2.82992344,32752.0,32751.0,0.24057544]
[1625762520231,4.24381595,32752.0,32751.0,0.24057544]
[1625762521209,2.82992344,32752.0,32751.0,0.24057544]
[1625762521507,4.24383934,32752.0,32751.0,0.24057544]
[1625762522260,5.83202922,32752.0,32751.0,0.24057544]
[1625762522409,6.17259922,32752.0,32751.0,0.24057544]
[1625762523162,6.41317466,32752.0,32747.0,0.24057544]
[1625762523313,0.0905,32751.0,32747.0,0.24057544]
[1625762523464,4.76171082,32748.0,32747.0,0.24057544]
[1625762523614,5.81988837,32748.0,32747.0,0.24057544]
[1625762523766,5.81988837,32748.0,32747.0,0.18197544]
[1625762523917,5.81988837,32748.0,32742.0,0.23577544]
[1625762524066,5.81988837,32748.0,32742.0,0.21627544]
[1625762524216,2.82133884,32743.0,32742.0,0.19937544]
[1625762524365,3.12019884,32743.0,32742.0,0.19937544]
[1625762525266,3.36077428,32743.0,32742.0,0.19937544]
[1625762528868,4.06521049,32743.0,32742.0,0.19937544]
[1625762530518,2.83092984,32743.0,32742.0,0.19937544]
[1625762534127,2.53206984,32743.0,32742.0,0.19937544]
[1625762534874,2.86192984,32743.0,32742.0,0.19937544]
[1625762535174,4.09525629,32743.0,32742.0,0.19937544]
[1625762535324,4.33583173,32743.0,32742.0,0.19937544]
[1625762535926,5.74455463,32743.0,32742.0,0.19937544]